bitfinex/quotes_SOLUSD_20260226
["timestamp","ask_amount","ask_price","bid_price","bid_amount"]
[1772114357598,0.2,87.76,87.742,1.11967683]
[1772114357807,11.59478555,87.76,87.742,1.11967683]
[1772114358525,0.2,87.76,87.742,1.11967683]
[1772114360514,1.34768158,87.76,87.742,1.11967683]
[1772114362131,1.34768158,87.76,87.731,1.11967683]
[1772114362132,1.14768158,87.758,87.731,1.11967683]
[1772114362622,1.14768158,87.756,87.731,1.11967683]
[1772114363207,1.14768158,87.756,87.724,1.11967683]
[1772114363414,1.14768158,87.749,87.72,4.72058016]
[1772114363917,1.14768158,87.749,87.72,1.11967683]
[1772114364507,1.14768158,87.747,87.72,1.11967683]
[1772114365320,1.14768158,87.747,87.721,11.39977884]
[1772114365528,1.14768158,87.747,87.721,1.11967683]
[1772114366725,1.18437489,87.745,87.721,1.11967683]
[1772114366924,1.18437489,87.745,87.71,3.60090333]
[1772114367225,1.18437489,87.745,87.712,1.14330232]
[1772114367928,1.18437489,87.739,87.712,1.14330232]
[1772114369619,12.58194492,87.738,87.712,1.14330232]
[1772114370211,12.58194492,87.738,87.713,11.40081857]
[1772114370417,12.58194492,87.738,87.714,1.14330232]
[1772114370737,1.18437489,87.737,87.709,1.14330232]
[1772114371120,1.18437489,87.737,87.711,1.14330232]
[1772114371521,1.18437489,87.735,87.711,1.14330232]
[1772114372134,1.18437489,87.756,87.721,1.14330232]
[1772114375236,1.18437489,87.754,87.721,1.14330232]
[1772114375830,1.18437489,87.754,87.722,1.14330232]
[1772114377320,1.07852346,87.752,87.724,1.1692762]
[1772114377531,0.2,87.76,87.731,1.1692762]
[1772114378418,11.59479065,87.76,87.731,1.1692762]
[1772114379939,1.07852346,87.759,87.733,1.1692762]
[1772114383124,12.47349599,87.758,87.733,1.1692762]
[1772114383440,1.07852346,87.757,87.733,1.1692762]
[1772114385838,1.07852346,87.757,87.735,1.1692762]
[1772114388319,1.07852346,87.755,87.737,1.1692762]
[1772114388523,1.27852346,87.76,87.737,1.1692762]
[1772114388924,11.39484269,87.759,87.737,1.1692762]
[1772114389130,1.07852346,87.758,87.737,1.1692762]
[1772114390631,1.07852346,87.756,87.737,1.1692762]
[1772114393950,1.07852346,87.756,87.733,11.39813513]
[1772114394144,1.07852346,87.756,87.731,1.1692762]
[1772114397226,11.39536208,87.755,87.731,1.1692762]
[1772114397432,1.11047356,87.754,87.731,1.1692762]
[1772114398355,1.11047356,87.754,87.733,1.17830673]
[1772114399347,1.11047356,87.754,87.735,1.17830673]
[1772114400346,1.11047356,87.758,87.734,11.39808968]
[1772114400740,1.11047356,87.758,87.734,12.57639641]
[1772114401743,1.11047356,87.756,87.734,1.17830673]
[1772114402558,1e-08,87.76,87.736,1.17830673]
[1772114402752,56.94054745,87.811,87.751,1.17830673]
[1772114402753,1.11047356,87.789,87.751,1.17830673]
[1772114402960,1.11047356,87.779,87.751,1.17830673]
[1772114403131,1.11047356,87.769,87.735,11.39795976]
[1772114403333,1.11047356,87.759,87.72,3.59639783]
[1772114403533,1.11047356,87.759,87.701,39.90832487]
[1772114403844,1.11047356,87.749,87.71,3.59639783]
[1772114405262,1.11047356,87.748,87.713,1.17830673]
[1772114405842,1.11047356,87.769,87.731,1.17830673]
[1772114406160,1.11047356,87.789,87.75,8.1e-07]
[1772114406339,1.11047356,87.779,87.74,3.59639783]
[1772114406753,1.11047356,87.769,87.73,3.59639783]
[1772114406953,1.11047356,87.759,87.712,39.90331994]
[1772114407155,1.11047356,87.757,87.72,3.59639783]
[1772114407352,1.11047356,87.757,87.704,3.69383402]
[1772114407652,1.11047356,87.757,87.701,39.90832487]
[1772114407653,1.11047356,87.749,87.71,3.59639783]
[1772114408038,1.11047356,87.749,87.701,39.90832487]
[1772114408240,1.11047356,87.749,87.711,0.48070894]
[1772114408858,1.11047356,87.749,87.721,0.48074479]
[1772114409238,1.11047356,87.757,87.723,0.48074479]
[1772114410557,1.11047356,87.778,87.741,0.48078132]
[1772114411148,1.11047356,87.778,87.74,3.59639783]
[1772114412059,1.11047356,87.769,87.736,11.39782985]
[1772114412350,1.11047356,87.759,87.722,0.48084457]
[1772114413589,1.11047356,87.757,87.724,11.3992697]
[1772114413760,1.11047356,87.757,87.724,11.88015437]
[1772114415550,1.11047356,87.755,87.724,0.48088467]
[1772114415760,1.11047356,87.749,87.707,0.4810029]
[1772114415957,1.11047356,87.749,87.721,0.4810029]
[1772114416453,1.11047356,87.749,87.73,4.07740073]
[1772114417257,1.11047356,87.749,87.73,0.4810029]
[1772114417448,1.11047356,87.759,87.731,0.4810342]
[1772114418266,1.11047356,87.774,87.74,3.59639783]
[1772114418568,1.11047356,87.782,87.76,3.59639783]
[1772114419441,1.11047356,87.782,87.76,14.99103909]
[1772114420444,1.11047356,87.782,87.761,0.48114021]
[1772114420644,0.2,87.79,87.771,0.48114021]
[1772114421746,1.11047356,87.796,87.77,14.98974906]
[1772114421747,1.11047356,87.796,87.773,0.48116018]
[1772114423047,3.59639783,87.81,87.773,0.48116018]
[1772114423048,1.11047356,87.806,87.773,0.48116018]
[1772114423547,1.11047356,87.806,87.775,0.48121955]
[1772114423742,1.11047356,87.806,87.78,4.07764753]
[1772114424669,1.11047356,87.806,87.761,11.39458301]
[1772114424670,1.11047356,87.799,87.761,11.39458301]
[1772114424844,1.11047356,87.799,87.761,11.87586158]
[1772114425568,1.11047356,87.799,87.762,0.48127857]
[1772114425772,1.11047356,87.799,87.771,0.48127857]
[1772114426073,1.11047356,87.799,87.78,3.59639783]
[1772114426249,1.11047356,87.799,87.778,0.48133638]
[1772114426445,1.11047356,87.799,87.771,0.48133638]
[1772114426649,1.11263792,87.797,87.771,11.8745339]
[1772114427153,1.11263792,87.797,87.771,11.39319752]
[1772114427950,1.11263792,87.789,87.75,3.59639783]
[1772114428252,1.11263792,87.789,87.751,0.48137454]
[1772114428764,1.11263792,87.787,87.751,11.87725606]
[1772114428951,1.11263792,87.787,87.751,11.39588152]
[1772114429152,1.11263792,87.779,87.746,11.39653089]
[1772114430574,1.11263792,87.779,87.742,11.39697939]
[1772114430757,1.11263792,87.767,87.736,11.39777067]
[1772114431571,1.11263792,87.767,87.71,3.69383402]
[1772114431572,1.11263792,87.759,87.721,0.48146725]
[1772114431875,1.11263792,87.759,87.73,3.59639783]
[1772114432856,1.11263792,87.757,87.73,3.59639783]
[1772114433061,1.11263792,87.757,87.723,11.39946231]
[1772114433462,1.11263792,87.749,87.712,11.40094855]
[1772114434264,1.11263792,87.739,87.706,11.40161701]
[1772114434951,1.11263792,87.737,87.701,11.40237853]
[1772114435556,1.11263792,87.737,87.71,3.59639783]
[1772114437481,1.11263792,87.735,87.703,11.88379037]
[1772114437667,1.11263792,87.735,87.704,0.48167186]
[1772114438673,1.11263792,87.735,87.703,11.40211851]
[1772114439083,1.11263792,87.735,87.704,0.48175429]
[1772114439275,1.11263792,87.735,87.711,0.48175429]
[1772114440682,1.13849512,87.733,87.701,11.40237853]
[1772114440888,1.13849512,87.733,87.702,0.48180272]
[1772114442459,1.13849512,87.733,87.7,3.59774651]
[1772114442883,1.13849512,87.731,87.7,3.59774651]
[1772114443076,1.13849512,87.731,87.701,11.88424046]
[1772114443279,1.13849512,87.729,87.694,0.48186193]
[1772114443987,1.13849512,87.729,87.693,11.40341874]
[1772114444159,1.13849512,87.729,87.694,0.48188189]
[1772114444365,1.13849512,87.729,87.7,4.0796284]
[1772114444588,1.13849512,87.729,87.701,0.48188189]
[1772114444989,1.13849512,87.729,87.702,11.40224852]
[1772114445192,1.13849512,87.727,87.696,11.40298214]
[1772114445687,11.39886923,87.728,87.643,0.48190364]
[1772114445688,1.13849512,87.709,87.643,0.48190364]
[1772114445986,1.13849512,87.699,87.66,4.07969063]
[1772114446306,1.13849512,87.699,87.68,3.59774651]
[1772114446668,1.13849512,87.699,87.67,4.07969063]
[1772114447163,1.13849512,87.699,87.671,11.40628029]
[1772114447368,1.13849512,87.699,87.672,0.48198068]
[1772114449690,1.13849512,87.708,87.674,0.48201525]
[1772114450973,11.40142797,87.709,87.65,0.48206088]
[1772114450974,1.13849512,87.699,87.65,0.48206088]
[1772114451181,1.13849512,87.699,87.671,0.48206088]
[1772114451778,1.13849512,87.699,87.672,11.40615019]
[1772114453474,11.40274314,87.699,87.672,11.40615019]
[1772114453674,1.13849512,87.698,87.672,11.40615019]
[1772114454683,1.13849512,87.696,87.67,3.59774651]
[1772114456716,1.07932696,87.694,87.662,11.40738991]
[1772114458408,1.07932696,87.709,87.663,0.47894966]
[1772114458656,1.07932696,87.709,87.67,3.59774651]
[1772114460905,1.07932696,87.707,87.671,11.40628029]
[1772114462017,1.07932696,87.707,87.68,3.59774651]
[1772114462220,1.07932696,87.707,87.69,3.59774651]
[1772114462425,1.07932696,87.707,87.68,3.59774651]
[1772114463207,32.09774832,87.72,87.68,3.59774651]
[1772114463208,1.07932696,87.705,87.68,3.59774651]
[1772114463408,1.07932696,87.705,87.67,3.59774651]
[1772114464331,1.07932696,87.705,87.681,0.47440654]
[1772114464623,39.89558753,87.729,87.691,1.16325077]
[1772114465002,39.89558753,87.729,87.69,3.59774651]
[1772114465203,3.59774651,87.72,87.68,3.59774651]
[1772114465417,39.90013566,87.719,87.68,3.59774651]
[1772114465635,39.90013566,87.719,87.65,3.69383402]
[1772114465636,3.59774651,87.71,87.67,3.59774651]
[1772114466154,39.90013566,87.719,87.681,1.16325077]
[1772114466514,1.07932696,87.718,87.681,1.16325077]
[1772114467113,1.07932696,87.709,87.67,3.59774651]
[1772114467422,1.07932696,87.697,87.66,3.59774651]
[1772114468002,1.07932696,87.697,87.661,11.40758147]
[1772114469628,1.07932696,87.695,87.661,11.40758147]
[1772114471728,1.07932696,87.693,87.67,3.59774651]
[1772114471903,1.07932696,87.693,87.67,4.76099728]
[1772114472105,1.07932696,87.693,87.68,3.59774651]
[1772114472706,1.07932696,87.693,87.67,3.59774651]
[1772114474028,1.07932696,87.693,87.67,15.00409615]
[1772114474830,1.07932696,87.693,87.671,1.16325077]
[1772114475432,104.1,87.719,87.67,43.52012215]
[1772114475433,1.07932696,87.703,87.681,1.16325077]
[1772114475625,1.07932696,87.703,87.68,3.59774651]
[1772114475823,1.07932696,87.737,87.691,1.16325077]
[1772114476027,1.07932696,87.729,87.69,3.59774651]
[1772114476543,1.07932696,87.729,87.671,28.51565985]
[1772114476544,1.07932696,87.719,87.68,3.59774651]
[1772114478022,1.07932696,87.717,87.681,11.40497941]
[1772114478309,1.07932696,87.717,87.7,3.59774651]
[1772114478514,1.07932696,87.736,87.71,3.59774651]
[1772114479413,1.07932696,87.736,87.71,4.76099728]
[1772114479613,1.07932696,87.736,87.711,1.16325077]
[1772114480648,1.07932696,87.736,87.712,11.40094855]
[1772114480819,11.39795976,87.735,87.712,11.40094855]
[1772114481020,1.07932696,87.734,87.71,3.59774651]
[1772114482323,1.07932696,87.732,87.7,3.59774651]
[1772114485256,1.07932696,87.73,87.701,11.40237853]
[1772114485841,1.07932696,87.73,87.702,1.16325077]
[1772114486839,1.10269194,87.729,87.69,3.59774651]
[1772114487733,1.10269194,87.727,87.691,11.40367882]
[1772114487929,1.10269194,87.727,87.69,3.59774651]
[1772114488141,1.10269194,87.719,87.686,11.40432865]
[1772114488842,1.10269194,87.719,87.69,3.59774651]
[1772114489041,1.10269194,87.717,87.69,15.00151073]
[1772114489245,1.10269194,87.717,87.691,1.13919233]
[1772114491529,1.10269194,87.715,87.691,1.13919233]
[1772114492650,1.10269194,87.738,87.701,1.13919233]
[1772114492836,1.10269194,87.737,87.71,3.59774651]
[1772114495259,1.10269194,87.735,87.71,3.59774651]
[1772114497955,1.15276758,87.733,87.71,3.59774651]
[1772114499245,1.15276758,87.733,87.706,11.40167632]
[1772114499450,11.39834951,87.732,87.71,3.59823304]
[1772114499644,1.15276758,87.731,87.71,3.59823304]
[1772114500234,1.15276758,87.731,87.7,3.59823304]
[1772114501467,1.15276758,87.731,87.68,3.59823304]
[1772114501468,1.15276758,87.717,87.69,3.59823304]
[1772114501761,1.15276758,87.717,87.683,1.15291811]
[1772114502345,1.15276758,87.717,87.68,3.59823304]
[1772114503845,1.15276758,87.715,87.681,11.40497941]
[1772114504045,1.15276758,87.715,87.691,1.15291811]
[1772114504241,11.39982951,87.721,87.701,1.15291811]
[1772114504467,1.15276758,87.724,87.701,1.15291811]
[1772114504847,11.39744013,87.739,87.71,4.75115115]
[1772114505051,11.39744013,87.739,87.711,1.15291811]
[1772114505354,11.39744013,87.739,87.7,3.59823304]
[1772114505554,39.89104046,87.739,87.7,4.75115115]
[1772114505773,39.89104046,87.739,87.701,1.15291811]
[1772114506061,39.88194942,87.759,87.72,3.59823304]
[1772114506370,39.88194942,87.759,87.718,1.15291811]
[1772114506371,3.59823304,87.75,87.718,1.15291811]
[1772114506864,1.15276758,87.749,87.718,1.15291811]
[1772114507243,1.15276758,87.747,87.718,1.15291811]
[1772114507460,1.15276758,87.747,87.71,14.99935627]
[1772114507461,1.15276758,87.747,87.711,1.15291811]
[1772114508758,1.15276758,87.739,87.71,3.59823304]
[1772114509571,1.15276758,87.737,87.71,4.75115115]
[1772114510575,1.15276758,87.737,87.702,11.40217215]
[1772114510973,1.15276758,87.737,87.703,1.15291811]
[1772114511470,11.39782985,87.736,87.703,1.15291811]
[1772114511676,1.15276758,87.735,87.71,3.59823304]
[1772114511859,1.15276758,87.735,87.703,1.15291811]
[1772114512176,1.15276758,87.735,87.71,3.59823304]
[1772114512545,39.89240448,87.736,87.711,1.15291811]
[1772114512546,11.39782985,87.736,87.711,1.15291811]
[1772114513249,28.49142745,87.746,87.711,1.15291811]
[1772114513250,1.15276758,87.74,87.711,1.15291811]
[1772114515068,1.15276758,87.738,87.711,1.15291811]
[1772114516961,1.11674327,87.736,87.711,1.15291811]
[1772114517367,1.11674327,87.736,87.71,3.59823304]
[1772114518268,1.11674327,87.736,87.702,1.11400749]
[1772114519070,3.59823304,87.74,87.702,1.11400749]
[1772114519071,1.11674327,87.734,87.702,1.11400749]
[1772114519573,1.11674327,87.734,87.711,1.11400749]
[1772114519778,1.11674327,87.734,87.71,3.59823304]
[1772114520166,1.11674327,87.734,87.705,1.11400749]
[1772114520366,1.11674327,87.734,87.68,3.59823304]
[1772114520367,11.39795976,87.735,87.72,4.71224053]
[1772114520562,12.51416852,87.74,87.72,1.11400749]
[1772114520861,1.11674327,87.739,87.72,1.11400749]
[1772114521569,11.39757003,87.738,87.72,1.11400749]
[1772114521772,11.39757003,87.738,87.72,3.59823304]
[1772114521966,11.39757003,87.738,87.721,1.11400749]
[1772114522881,11.39432334,87.763,87.721,1.11400749]
[1772114523066,3.59823304,87.76,87.721,1.11400749]
[1772114523265,4.71497631,87.76,87.721,1.11400749]
[1772114523468,39.89149512,87.738,87.701,1.11400749]
[1772114523668,1.11674327,87.729,87.69,3.59823304]
[1772114523879,1.11674327,87.699,87.671,1.11400749]
[1772114524062,3.59823304,87.72,87.64,3.69823304]
[1772114524063,1.11674327,87.689,87.662,1.11400749]
[1772114525079,1.11674327,87.698,87.662,1.11400749]
[1772114525263,3.59823304,87.7,87.662,1.11400749]
[1772114525678,11.40263857,87.699,87.664,1.11400749]
[1772114525882,3.59823304,87.7,87.671,1.11400749]
[1772114526200,11.40220503,87.703,87.671,1.11400749]
[1772114527482,3.59823304,87.7,87.671,1.11400749]
[1772114527785,11.40263857,87.699,87.671,1.11400749]
[1772114528860,12.51938184,87.699,87.671,1.11400749]
[1772114529081,12.51938184,87.699,87.663,1.11400749]
[1772114529082,1.11674327,87.698,87.663,1.11400749]
[1772114529278,1.11674327,87.689,87.663,1.11400749]
[1772114529778,11.40406897,87.688,87.663,1.11400749]
[1772114530181,1.11674327,87.687,87.663,1.11400749]
[1772114530765,4.71497631,87.68,87.651,1.11400749]
[1772114531163,3.59823304,87.67,87.651,1.11400749]
[1772114531784,11.40654051,87.669,87.651,1.11400749]
[1772114532085,11.40536964,87.678,87.651,1.11400749]
[1772114532284,45.6077852,87.705,87.661,1.11400749]
[1772114532285,3.59823304,87.7,87.661,1.11400749]
[1772114532786,3.69383402,87.717,87.652,11.40875279]
[1772114532787,1.11674327,87.708,87.671,1.11400749]
[1772114533594,1.11674327,87.703,87.642,1.11400749]
[1772114533882,28.50658831,87.7,87.661,1.11400749]
[1772114534074,11.40224852,87.702,87.671,1.11400749]
[1772114535279,1.11674327,87.699,87.671,1.11400749]
[1772114535686,3.59823304,87.69,87.663,1.11400749]
[1772114535884,4.71497631,87.69,87.663,1.11400749]
[1772114538488,11.40393892,87.689,87.663,1.11400749]
[1772114540276,11.40302864,87.696,87.663,11.4072386]
[1772114540573,11.40302864,87.696,87.671,1.11400749]
[1772114540775,11.4025492,87.7,87.671,1.11400749]
[1772114542196,11.40133851,87.709,87.672,11.40615019]
[1772114542379,1.11674327,87.708,87.673,1.11400749]
[1772114542580,1.11674327,87.699,87.666,1.11400749]
[1772114544291,1.11674327,87.699,87.652,11.40875279]
[1772114544292,1.11674327,87.679,87.652,1.11400749]
[1772114544695,1.11674327,87.679,87.641,1.11400749]
[1772114545084,1.11674327,87.669,87.641,1.11400749]
[1772114546687,1.16503092,87.667,87.641,1.11400749]
[1772114546999,1.16503092,87.649,87.625,1.07385367]
[1772114547299,1.16503092,87.649,87.619,1.07385367]
[1772114547702,1.16503092,87.639,87.611,1.07385367]
[1772114548280,1.16503092,87.646,87.621,1.07385367]
[1772114548485,1.16503092,87.666,87.631,1.07385367]
[1772114548790,39.92334717,87.668,87.633,1.07385367]
[1772114548791,12.57209189,87.665,87.633,1.07385367]
[1772114548988,1.16503092,87.664,87.633,1.07385367]
[1772114549687,1.16503092,87.664,87.641,1.07385367]
[1772114549890,1.16503092,87.671,87.641,1.07385367]
[1772114550182,11.4064104,87.67,87.641,1.07385367]
[1772114550389,1.16503092,87.683,87.651,1.07385367]
[1772114550979,1.16503092,87.683,87.652,1.07385367]
[1772114550980,11.40502683,87.681,87.652,1.07385367]
[1772114551982,1.16503092,87.691,87.661,1.07385367]
[1772114552499,1.16503092,87.689,87.661,1.07385367]
[1772114554390,1.16503092,87.689,87.653,11.40862263]
[1772114554391,1.16503092,87.687,87.654,1.07385367]
[1772114554602,1.16503092,87.687,87.65,9.64904031]
[1772114554603,1.16503092,87.679,87.65,9.64904031]
[1772114554988,1.16503092,87.679,87.65,1.07385367]
[1772114555390,1.16503092,87.679,87.641,1.07385367]
[1772114555706,1.16503092,87.669,87.641,1.07385367]
[1772114556410,1.16503092,87.659,87.631,1.07385367]
[1772114559303,1.11441056,87.657,87.631,1.07385367]
[1772114559507,1.11441056,87.639,87.615,11.41348975]
[1772114559716,1.11441056,87.639,87.619,1.1225433]
[1772114559919,1.11441056,87.649,87.62,1.2225433]
[1772114560109,1.11441056,87.649,87.62,10.87619888]
[1772114560290,1.11441056,87.649,87.622,1.1225433]
[1772114561513,11.40927345,87.648,87.622,1.1225433]
[1772114561982,1.11441056,87.649,87.624,1.1225433]
[1772114562187,11.40921541,87.649,87.624,1.1225433]
[1772114562395,12.52362597,87.649,87.624,1.1225433]
[1772114562690,1.11441056,87.648,87.624,1.1225433]
[1772114564506,9.65365558,87.68,87.641,1.1225433]
[1772114564808,1.11441056,87.679,87.641,1.1225433]
[1772114565513,1.11441056,87.669,87.641,1.1225433]
[1772114566612,1.11441056,87.667,87.641,1.1225433]
[1772114566790,1.11441056,87.667,87.631,1.1225433]
[1772114568408,1.11441056,87.667,87.632,1.1225433]
[1772114569510,1.11441056,87.649,87.621,1.1225433]
[1772114569703,9.65365558,87.65,87.621,1.1225433]
[1772114570412,1.11441056,87.649,87.621,1.1225433]
[1772114570707,1.11441056,87.649,87.62,0.1]
[1772114571018,1.11441056,87.649,87.6,0.1]
[1772114571019,1.11441056,87.647,87.601,1.1225433]
[1772114571251,5.36086188,87.649,87.611,1.1225433]
[1772114571252,1.11441056,87.649,87.611,1.1225433]
[1772114571396,1.11441056,87.648,87.621,1.1225433]
[1772114571593,11.40847252,87.655,87.631,1.1225433]
[1772114571888,1.11441056,87.654,87.613,1.1225433]
[1772114572089,4.71972704,87.65,87.613,1.1225433]
[1772114572294,1.11441056,87.649,87.611,1.1225433]
[1772114572509,1.11441056,87.649,87.621,1.1225433]
[1772114573389,1.11441056,87.647,87.611,1.1225433]
[1772114575414,1.11441056,87.645,87.611,1.1225433]
[1772114576520,1.11638123,87.639,87.611,1.1225433]
[1772114576717,9.65879765,87.63,87.611,1.1225433]
[1772114576917,1.11638123,87.632,87.611,1.1225433]
[1772114578021,11.41044512,87.639,87.611,1.1225433]
[1772114578616,12.52682635,87.639,87.611,1.09095243]
[1772114578928,1.11638123,87.638,87.611,1.09095243]
[1772114580125,1.11638123,87.636,87.611,1.09095243]
[1772114582225,11.41070552,87.637,87.611,1.09095243]
[1772114582226,1.11638123,87.634,87.611,1.09095243]
[1772114583215,11.41035111,87.64,87.613,1.09095243]
[1772114583409,1.11638123,87.648,87.621,1.09095243]
[1772114584405,11.40940363,87.647,87.622,1.09095243]
[1772114585214,1.11638123,87.629,87.58,9.75879765]
[1772114585427,131.20814174,87.647,87.58,0.1]
[1772114585428,1.11638123,87.643,87.58,0.1]
[1772114585731,233.89277441,87.647,87.58,0.1]
[1772114585732,1.11638123,87.639,87.6,9.65879765]
[1772114586123,1.11638123,87.639,87.61,9.65879765]
[1772114586329,11.41057532,87.638,87.61,9.65879765]
[1772114586543,1.11638123,87.637,87.6,9.65879765]
[1772114586706,9.65879765,87.63,87.59,9.65879765]
[1772114586911,1.11638123,87.629,87.59,9.65879765]
[1772114587414,1.11638123,87.629,87.601,1.09095243]
[1772114588436,1.11638123,87.637,87.603,1.09095243]
[1772114589542,1.11638123,87.629,87.591,1.09095243]
[1772114591135,1.11638123,87.627,87.593,1.09095243]
[1772114591319,1.11638123,87.609,87.581,1.09095243]
[1772114593238,11.41448269,87.608,87.581,1.09095243]
[1772114593632,12.53086392,87.608,87.581,1.09095243]
[1772114593938,1.11638123,87.607,87.581,1.09095243]
[1772114594238,1.11638123,87.622,87.583,1.09095243]
[1772114594544,1.11638123,87.622,87.582,11.41787125]
[1772114594545,1.11638123,87.62,87.591,0.96095243]
[1772114594842,10.77517888,87.62,87.591,0.96095243]
[1772114595028,1.11638123,87.619,87.591,0.96095243]
[1772114596150,11.41317994,87.618,87.592,11.41656772]
[1772114596335,1.11638123,87.617,87.592,11.41656772]
[1772114597246,12.52982169,87.616,87.592,11.41656772]
[1772114597452,3.60782236,87.61,87.581,1.09095243]
[1772114597641,3.60782236,87.61,87.58,0.1]
[1772114597642,1.11638123,87.599,87.58,0.1]
[1772114597842,1.11638123,87.609,87.58,1.19095243]
[1772114598648,3.60782236,87.6,87.58,0.1]
[1772114598834,1.11638123,87.599,87.58,0.1]
[1772114599244,1.11638123,87.598,87.58,0.1]
[1772114599828,3.60782236,87.6,87.58,0.1]
[1772114600028,1.11638123,87.605,87.58,0.1]
[1772114600449,1.11638123,87.599,87.58,0.1]
[1772114600629,1.11638123,87.599,87.57,0.1]
[1772114600630,1.11638123,87.589,87.57,0.1]
[1772114600830,1.11638123,87.569,87.542,11.42300367]
[1772114601434,1.11638123,87.568,87.54,0.1]
[1772114602534,11.41961308,87.569,87.55,1.19095243]
[1772114602740,3.60782236,87.6,87.55,1.19095243]
[1772114602741,3.60782236,87.58,87.55,1.19095243]
[1772114602958,11.41826236,87.579,87.55,1.19095243]
[1772114603852,1.11638123,87.596,87.552,1.09095243]
[1772114604054,4.72420359,87.59,87.552,1.09095243]
[1772114604233,1.11638123,87.589,87.552,1.09095243]
[1772114606452,1.13929392,87.579,87.552,1.09095243]
[1772114606749,1.13929392,87.579,87.55,1.1861721]
[1772114608131,1.13929392,87.586,87.551,1.0861721]
[1772114608357,3.69383402,87.601,87.55,11.52198811]
[1772114608358,1.13929392,87.608,87.561,1.0861721]
[1772114608541,3.69383402,87.604,87.571,1.0861721]
[1772114608735,8.96868424,87.64,87.562,39.9716772]
[1772114608736,1.13929392,87.622,87.593,0.77178341]
[1772114609059,3.60782236,87.62,87.593,0.77178341]
[1772114609243,1.13929392,87.619,87.593,0.77178341]
[1772114609440,1.13929392,87.619,87.581,0.77270147]
[1772114610756,3.69383402,87.614,87.583,0.77362725]
[1772114611451,3.69383402,87.607,87.583,0.77362725]
[1772114611757,1.13929392,87.606,87.574,0.77452576]
[1772114611949,3.69383402,87.607,87.574,0.77452576]
[1772114612261,1.13929392,87.614,87.581,0.7754331]
[1772114612262,3.69383402,87.614,87.581,0.7754331]
[1772114612553,3.69383402,87.614,87.601,0.7754331]
[1772114612753,1.13929392,87.629,87.602,11.41526449]
[1772114613448,11.41104663,87.635,87.602,11.41526449]
[1772114613648,11.41104663,87.635,87.61,9.66445654]
[1772114613956,12.58937914,87.635,87.61,9.66445654]
[1772114614163,1.17833251,87.654,87.63,9.66445654]
[1772114614355,1.17833251,87.654,87.62,9.66445654]
[1772114614848,1.17833251,87.667,87.63,9.66445654]
[1772114615036,1.17833251,87.667,87.64,9.66445654]
[1772114616064,3.69383402,87.665,87.64,9.66445654]
[1772114616267,3.69383402,87.665,87.639,11.41033009]
[1772114617472,3.69383402,87.661,87.634,11.41102025]
[1772114617958,1.17833251,87.66,87.63,9.66445654]
[1772114618151,28.51584442,87.671,87.61,9.66445654]
[1772114618152,1.17833251,87.646,87.61,9.66445654]
[1772114618358,1.17833251,87.646,87.62,9.66445654]
[1772114618766,1.17833251,87.646,87.61,9.66445654]
[1772114618953,1.17833251,87.636,87.601,11.4153948]
[1772114620560,3.69383402,87.632,87.601,11.4153948]
[1772114620763,1.17833251,87.626,87.596,11.41594577]
[1772114620942,1.17833251,87.616,87.58,9.66445654]
[1772114621350,1.17833251,87.616,87.58,9.66528917]
[1772114621669,1.17833251,87.606,87.57,9.66528917]
[1772114622468,1.17833251,87.616,87.59,9.66528917]
[1772114622844,4.87216653,87.612,87.58,9.66528917]
[1772114623038,1.17833251,87.611,87.58,9.66528917]
[1772114624448,3.69383402,87.607,87.58,9.66528917]
[1772114625460,3.69383402,87.607,87.581,11.41800162]
[1772114625770,3.69383402,87.612,87.582,0.02049526]
[1772114625956,3.69383402,87.611,87.582,0.02049526]
[1772114629667,11.41422212,87.61,87.582,0.02049526]
[1772114629859,3.69383402,87.607,87.582,0.02049526]
[1772114630455,4.87216653,87.607,87.582,0.02049526]
[1772114630871,3.69383402,87.607,87.582,0.02049526]
[1772114631172,3.69383402,87.611,87.582,0.02049526]
[1772114631666,1.17833251,87.623,87.591,0.02657731]
[1772114632664,1.17833251,87.616,87.581,11.44576996]
[1772114632861,1.17833251,87.616,87.582,0.02776834]
[1772114633447,11.41357073,87.615,87.582,0.02776834]
[1772114633776,1.17833251,87.614,87.582,0.02776834]
[1772114634576,11.41383128,87.613,87.582,0.02776834]
[1772114634873,1.17833251,87.614,87.582,0.02776834]
[1772114635670,1.17833251,87.613,87.582,0.02776834]
[1772114636862,11.41396155,87.612,87.582,0.02776834]
[1772114637173,1.17833251,87.611,87.582,0.02776834]
[1772114639162,1.17833251,87.609,87.582,0.02776834]
[1772114640366,1.17833251,87.607,87.582,0.02776834]
[1772114640774,1.17833251,87.599,87.563,0.03459118]
[1772114641173,57.05711106,87.632,87.571,0.03511259]
[1772114641174,1.17833251,87.606,87.571,0.03511259]
[1772114641477,1.17833251,87.614,87.581,0.03511259]
[1772114642061,1.17833251,87.614,87.591,0.03562758]
[1772114642262,1.17833251,87.628,87.591,0.03562758]
[1772114643167,1.17833251,87.626,87.591,11.45232564]
[1772114643487,1.17833251,87.626,87.591,11.41669806]
[1772114645182,1.17833251,87.626,87.592,0.03720029]
[1772114647082,1.17833251,87.656,87.601,0.03821475]
[1772114647387,1.17833251,87.656,87.621,0.03821475]
[1772114647679,104.1,87.695,87.6,3.60825532]